[Event "*** Titled Tuesday Blitz"]
[Site "Chess.com"]
[Date "2021.02.09"]
[Round "2"]
[White "Grammnik"]
[Black "AlexOstrovskiy"]
[Result "0-1"]
[WhiteElo "2412"]
[BlackElo "2765"]
[TimeControl "180+1"]
[EndTime "10:18:15 PST"]
[Termination "AlexOstrovskiy won on time"]

1. d4 {[%clk 0:03:00.9]} 1... Nf6 {[%clk 0:02:59.8]} 2. Nf3 {[%clk 0:03:00.2]}
2... c5 {[%clk 0:02:59.5]} 3. d5 {[%clk 0:02:59.9]} 3... d6 {[%clk 0:02:58.8]}
4. Nc3 {[%clk 0:02:59.2]} 4... g6 {[%clk 0:02:58.9]} 5. e4 {[%clk 0:02:58]} 5...
Bg7 {[%clk 0:02:59.4]} 6. Bb5+ {[%clk 0:02:57.5]} 6... Bd7 {[%clk 0:02:54.6]} 7.
a4 {[%clk 0:02:57]} 7... O-O {[%clk 0:02:54.6]} 8. O-O {[%clk 0:02:56.3]} 8...
Na6 {[%clk 0:02:55.1]} 9. Nd2 {[%clk 0:02:55.2]} 9... Nc7 {[%clk 0:02:54.1]} 10.
Be2 {[%clk 0:02:52.7]} 10... a6 {[%clk 0:02:49.5]} 11. a5 {[%clk 0:02:51.2]}
11... Rb8 {[%clk 0:02:49.9]} 12. Nc4 {[%clk 0:02:50.1]} 12... Nb5 {[%clk
0:02:50]} 13. f3 {[%clk 0:02:43]} 13... Nxc3 {[%clk 0:02:48.6]} 14. bxc3 {[%clk
0:02:42.6]} 14... Bb5 {[%clk 0:02:49]} 15. Nb6 {[%clk 0:02:40]} 15... Bxe2
{[%clk 0:02:43.2]} 16. Qxe2 {[%clk 0:02:39.5]} 16... Nd7 {[%clk 0:02:44.1]} 17.
Nxd7 {[%clk 0:02:29.3]} 17... Qxd7 {[%clk 0:02:45]} 18. Bd2 {[%clk 0:02:27.5]}
18... e6 {[%clk 0:02:39.7]} 19. dxe6 {[%clk 0:02:24.9]} 19... Qxe6 {[%clk
0:02:39.5]} 20. Qd3 {[%clk 0:01:59.1]} 20... f5 {[%clk 0:02:26.5]} 21. exf5
{[%clk 0:01:55.3]} 21... Rxf5 {[%clk 0:02:27.4]} 22. Rfe1 {[%clk 0:01:52.2]}
22... Qd7 {[%clk 0:02:23.2]} 23. Rab1 {[%clk 0:01:44.9]} 23... d5 {[%clk
0:02:17.5]} 24. c4 {[%clk 0:01:38.7]} 24... Rd8 {[%clk 0:02:04.9]} 25. Bc3
{[%clk 0:01:35.2]} 25... d4 {[%clk 0:01:43.6]} 26. Bd2 {[%clk 0:01:34.5]} 26...
Rf7 {[%clk 0:01:43.9]} 27. Re4 {[%clk 0:01:20.4]} 27... Qa4 {[%clk 0:01:35.8]}
28. h4 {[%clk 0:01:10.6]} 28... Rdf8 {[%clk 0:01:22.9]} 29. h5 {[%clk
0:01:09.5]} 29... gxh5 {[%clk 0:01:17.8]} 30. Rbe1 {[%clk 0:00:53.9]} 30... Qd7
{[%clk 0:01:13.1]} 31. Re6 {[%clk 0:00:50.3]} 31... h4 {[%clk 0:01:03.2]} 32.
Qe4 {[%clk 0:00:29.4]} 32... h3 {[%clk 0:00:56.7]} 33. gxh3 {[%clk 0:00:24.3]}
33... Rxf3 {[%clk 0:00:50.9]} 34. Qg4 {[%clk 0:00:24.1]} 34... Qf7 {[%clk
0:00:37.4]} 35. Qg2 {[%clk 0:00:17.8]} 35... Rf2 {[%clk 0:00:35.4]} 36. Qg3
{[%clk 0:00:04.3]} 36... Rxd2 {[%clk 0:00:26]} 37. Re7 {[%clk 0:00:01.6]} 37...
Qf2+ {[%clk 0:00:21.3]} 0-1

[Event "*** Titled Tuesday Blitz"]
[Site "Chess.com"]
[Date "2021.02.09"]
[Round "2"]
[White "Euwe1234"]
[Black "reutik"]
[Result "1-0"]
[WhiteElo "2459"]
[BlackElo "2240"]
[TimeControl "180+1"]
[EndTime "10:18:16 PST"]
[Termination "Euwe1234 won on time"]

1. e4 {[%clk 0:03:00.9]} 1... e6 {[%clk 0:03:00.2]} 2. d4 {[%clk 0:03:00.7]}
2... d5 {[%clk 0:03:00.4]} 3. Nc3 {[%clk 0:03:01.3]} 3... Bb4 {[%clk 0:02:59.7]}
4. e5 {[%clk 0:03:00.7]} 4... c5 {[%clk 0:02:58.6]} 5. a3 {[%clk 0:03:01]} 5...
Bxc3+ {[%clk 0:02:58.8]} 6. bxc3 {[%clk 0:03:01.9]} 6... Qa5 {[%clk 0:02:51.9]}
7. Bd2 {[%clk 0:03:00.8]} 7... Qa4 {[%clk 0:02:51.6]} 8. Qg4 {[%clk 0:03:00.4]}
8... Kf8 {[%clk 0:02:50.2]} 9. h4 {[%clk 0:03:00.2]} 9... Nc6 {[%clk 0:02:41.4]}
10. Nf3 {[%clk 0:02:56.5]} 10... c4 {[%clk 0:02:31.3]} 11. h5 {[%clk 0:02:50.2]}
11... h6 {[%clk 0:02:31.6]} 12. Rh3 {[%clk 0:02:48.5]} 12... Nge7 {[%clk
0:02:30.6]} 13. Rc1 {[%clk 0:02:38.8]} 13... Qxa3 {[%clk 0:02:29.7]} 14. Qf4
{[%clk 0:02:38.8]} 14... Bd7 {[%clk 0:02:25.9]} 15. g4 {[%clk 0:02:38.4]} 15...
b5 {[%clk 0:02:16.3]} 16. g5 {[%clk 0:02:37.3]} 16... hxg5 {[%clk 0:02:12.2]}
17. Nxg5 {[%clk 0:02:38.2]} 17... Nf5 {[%clk 0:02:12.4]} 18. Be2 {[%clk
0:02:27.2]} 18... Qe7 {[%clk 0:02:02.4]} 19. Bg4 {[%clk 0:02:25.2]} 19... Nh6
{[%clk 0:01:58.8]} 20. Bf3 {[%clk 0:02:20.8]} 20... a5 {[%clk 0:01:55.2]} 21.
Ra1 {[%clk 0:02:18.8]} 21... Rb8 {[%clk 0:01:52]} 22. Rg3 {[%clk 0:02:05.1]}
22... Nf5 {[%clk 0:01:48.8]} 23. Rg1 {[%clk 0:02:02.5]} 23... b4 {[%clk
0:01:43.3]} 24. Bg4 {[%clk 0:01:55.5]} 24... Nh6 {[%clk 0:01:42.2]} 25. Bh3
{[%clk 0:01:54]} 25... Kg8 {[%clk 0:01:17.2]} 26. Nf3 {[%clk 0:01:41.8]} 26...
Qf8 {[%clk 0:00:51.8]} 27. Qf6 {[%clk 0:01:33.1]} 27... Kh7 {[%clk 0:00:44.8]}
28. Ng5+ {[%clk 0:00:34.3]} 28... Kg8 {[%clk 0:00:43.8]} 29. Nxe6 {[%clk
0:00:34.5]} 29... Bxe6 {[%clk 0:00:20.5]} 30. Bxe6 {[%clk 0:00:33.8]} 30... fxe6
{[%clk 0:00:14.6]} 31. Qxe6+ {[%clk 0:00:34.7]} 31... Nf7 {[%clk 0:00:14]} 32.
Qxc6 {[%clk 0:00:34]} 32... Rxh5 {[%clk 0:00:14.1]} 33. Qxd5 {[%clk 0:00:34]}
33... bxc3 {[%clk 0:00:10.4]} 34. Bxc3 {[%clk 0:00:33.4]} 34... a4 {[%clk
0:00:08.7]} 35. Qxc4 {[%clk 0:00:28.4]} 35... a3 {[%clk 0:00:06.5]} 36. e6
{[%clk 0:00:27.7]} 36... Nd6 {[%clk 0:00:03.3]} 37. Qd3 {[%clk 0:00:20.6]} 1-0

[Event "*** Titled Tuesday Blitz"]
[Site "Chess.com"]
[Date "2021.02.09"]
[Round "2"]
[White "Kapibara_Warri0r"]
[Black "MergenKakabaev"]
[Result "1-0"]
[WhiteElo "2185"]
[BlackElo "2390"]
[TimeControl "180+1"]
[EndTime "10:18:16 PST"]
[Termination "Kapibara_Warri0r won by checkmate"]

1. d4 {[%clk 0:03:00.9]} 1... d5 {[%clk 0:02:58.6]} 2. Bf4 {[%clk 0:03:00.6]}
2... Nf6 {[%clk 0:02:51.3]} 3. e3 {[%clk 0:02:49.9]} 3... c5 {[%clk 0:02:50.9]}
4. c3 {[%clk 0:02:43]} 4... Nc6 {[%clk 0:02:50.3]} 5. Bd3 {[%clk 0:02:39.8]}
5... Qb6 {[%clk 0:02:49.3]} 6. Qc1 {[%clk 0:02:36.9]} 6... c4 {[%clk 0:02:46.8]}
7. Bc2 {[%clk 0:02:34.1]} 7... Bg4 {[%clk 0:02:45.9]} 8. h3 {[%clk 0:02:30.9]}
8... Bh5 {[%clk 0:01:21.7]} 9. Nd2 {[%clk 0:02:21.2]} 9... e6 {[%clk 0:01:21.8]}
10. Ngf3 {[%clk 0:02:18.6]} 10... Qd8 {[%clk 0:01:20.1]} 11. O-O {[%clk
0:02:11.9]} 11... Bd6 {[%clk 0:01:19.6]} 12. Be5 {[%clk 0:02:05.7]} 12... Bxe5
{[%clk 0:01:18.2]} 13. Nxe5 {[%clk 0:02:04.2]} 13... Nxe5 {[%clk 0:01:18]} 14.
dxe5 {[%clk 0:02:05.1]} 14... Nd7 {[%clk 0:01:18.6]} 15. f4 {[%clk 0:02:02.4]}
15... b5 {[%clk 0:01:17.6]} 16. Nf3 {[%clk 0:01:45]} 16... Bxf3 {[%clk
0:01:15.8]} 17. Rxf3 {[%clk 0:01:44]} 17... Qb6 {[%clk 0:01:15.4]} 18. Kh1
{[%clk 0:01:40.2]} 18... g6 {[%clk 0:01:15]} 19. a4 {[%clk 0:01:35.3]} 19... b4
{[%clk 0:01:13.2]} 20. a5 {[%clk 0:01:33.5]} 20... Qc5 {[%clk 0:01:09.3]} 21.
Ba4 {[%clk 0:01:31.2]} 21... Rb8 {[%clk 0:01:05.9]} 22. Qd2 {[%clk 0:01:03.4]}
22... Ke7 {[%clk 0:01:04.6]} 23. e4 {[%clk 0:00:56.4]} 23... bxc3 {[%clk
0:00:57.5]} 24. bxc3 {[%clk 0:00:55.8]} 24... Rhd8 {[%clk 0:00:57]} 25. exd5
{[%clk 0:00:49.5]} 25... Qxd5 {[%clk 0:00:50.5]} 26. Qf2 {[%clk 0:00:49.1]}
26... Nc5 {[%clk 0:00:48.6]} 27. Bc2 {[%clk 0:00:45]} 27... Rb2 {[%clk
0:00:46.8]} 28. Kh2 {[%clk 0:00:26.5]} 28... Nd3 {[%clk 0:00:30.7]} 29. Qe2
{[%clk 0:00:26.2]} 29... g5 {[%clk 0:00:22.9]} 30. f5 {[%clk 0:00:18.3]} 30...
Qxe5+ {[%clk 0:00:21.5]} 31. Qxe5 {[%clk 0:00:17.8]} 31... Nxe5 {[%clk
0:00:22.4]} 32. Rf2 {[%clk 0:00:17.3]} 32... exf5 {[%clk 0:00:20.6]} 33. Re1
{[%clk 0:00:17]} 33... f6 {[%clk 0:00:20.4]} 34. Rfe2 {[%clk 0:00:13]} 34... f4
{[%clk 0:00:20.4]} 35. Bxh7 {[%clk 0:00:11.3]} 35... Kf8 {[%clk 0:00:20.2]} 36.
Rxb2 {[%clk 0:00:10.4]} 36... Kg7 {[%clk 0:00:20.2]} 37. Rb7+ {[%clk 0:00:10.2]}
37... Kh6 {[%clk 0:00:19.9]} 38. Bf5 {[%clk 0:00:09.7]} 38... Rd5 {[%clk
0:00:19.6]} 39. Rh7# {[%clk 0:00:09.6]} 1-0

[Event "*** Titled Tuesday Blitz"]
[Site "Chess.com"]
[Date "2021.02.09"]
[Round "2"]
[White "tdf98pantani"]
[Black "NMJeevanK"]
[Result "0-1"]
[WhiteElo "2750"]
[BlackElo "2510"]
[TimeControl "180+1"]
[EndTime "10:18:18 PST"]
[Termination "NMJeevanK won on time"]

1. e4 {[%clk 0:03:00.9]} 1... e5 {[%clk 0:02:58.3]} 2. Nf3 {[%clk 0:02:59.2]}
2... Nc6 {[%clk 0:02:58.8]} 3. Bb5 {[%clk 0:02:58.1]} 3... a6 {[%clk 0:02:58.5]}
4. Ba4 {[%clk 0:02:57.1]} 4... Nf6 {[%clk 0:02:58.1]} 5. O-O {[%clk 0:02:55.8]}
5... b5 {[%clk 0:02:53.6]} 6. Bb3 {[%clk 0:02:54.7]} 6... Be7 {[%clk 0:02:54.3]}
7. Re1 {[%clk 0:02:53]} 7... d6 {[%clk 0:02:50.8]} 8. c3 {[%clk 0:02:51]} 8...
O-O {[%clk 0:02:47.2]} 9. h3 {[%clk 0:02:49.1]} 9... Na5 {[%clk 0:02:47.1]} 10.
Bc2 {[%clk 0:02:48.4]} 10... c5 {[%clk 0:02:47.8]} 11. d4 {[%clk 0:02:47.6]}
11... Qc7 {[%clk 0:02:47.3]} 12. Nbd2 {[%clk 0:02:42.7]} 12... cxd4 {[%clk
0:02:36.6]} 13. cxd4 {[%clk 0:02:41.9]} 13... Nc6 {[%clk 0:02:37.3]} 14. Nf1
{[%clk 0:02:37]} 14... exd4 {[%clk 0:02:34.2]} 15. Bb3 {[%clk 0:02:08.2]} 15...
Qb6 {[%clk 0:02:23.4]} 16. a3 {[%clk 0:02:01.8]} 16... Nd7 {[%clk 0:02:13]} 17.
Bd5 {[%clk 0:01:53.5]} 17... Nde5 {[%clk 0:02:05.6]} 18. Ng3 {[%clk 0:01:44.3]}
18... Bf6 {[%clk 0:01:51.6]} 19. Bf4 {[%clk 0:01:37]} 19... Bb7 {[%clk
0:01:44.4]} 20. Rc1 {[%clk 0:01:34.6]} 20... Nxf3+ {[%clk 0:01:34.1]} 21. Qxf3
{[%clk 0:01:30.9]} 21... Ne5 {[%clk 0:01:34.6]} 22. Bxe5 {[%clk 0:01:23.2]}
22... dxe5 {[%clk 0:01:27.7]} 23. Nh5 {[%clk 0:01:11.7]} 23... Bxd5 {[%clk
0:01:21.1]} 24. exd5 {[%clk 0:01:11.1]} 24... Bg5 {[%clk 0:01:16.8]} 25. Rc6
{[%clk 0:01:09.9]} 25... Qb8 {[%clk 0:00:52.1]} 26. Nxg7 {[%clk 0:01:05]} 26...
Kxg7 {[%clk 0:00:50.9]} 27. Qg4 {[%clk 0:00:57.9]} 27... f6 {[%clk 0:00:50.7]}
28. h4 {[%clk 0:00:54.6]} 28... h6 {[%clk 0:00:50.5]} 29. hxg5 {[%clk
0:00:53.9]} 29... hxg5 {[%clk 0:00:51.4]} 30. Rec1 {[%clk 0:00:51.6]} 30... Ra7
{[%clk 0:00:51.3]} 31. d6 {[%clk 0:00:46.9]} 31... Rff7 {[%clk 0:00:44.2]} 32.
Rc8 {[%clk 0:00:44.4]} 32... Qxd6 {[%clk 0:00:40.4]} 33. Qh5 {[%clk 0:00:41.6]}
33... Rf8 {[%clk 0:00:40.2]} 34. R1c6 {[%clk 0:00:34.7]} 34... Qe7 {[%clk
0:00:34.9]} 35. Qg4 {[%clk 0:00:19.4]} 35... Rd7 {[%clk 0:00:31.1]} 36. Qf5
{[%clk 0:00:14.5]} 36... Rxc8 {[%clk 0:00:21.1]} 37. Rxc8 {[%clk 0:00:13.7]}
37... Rd8 {[%clk 0:00:20.7]} 0-1

[Event "*** Titled Tuesday Blitz"]
[Site "Chess.com"]
[Date "2021.02.09"]
[Round "2"]
[White "rynos0411"]
[Black "LenkaPtacnikova"]
[Result "1-0"]
[WhiteElo "2408"]
[BlackElo "2165"]
[TimeControl "180+1"]
[EndTime "10:18:18 PST"]
[Termination "rynos0411 won by resignation"]

1. d4 {[%clk 0:03:00.5]} 1... Nf6 {[%clk 0:02:59.3]} 2. c4 {[%clk 0:03:00.8]}
2... e6 {[%clk 0:02:59.5]} 3. Nf3 {[%clk 0:03:01]} 3... Bb4+ {[%clk 0:02:59.3]}
4. Bd2 {[%clk 0:03:00]} 4... c5 {[%clk 0:02:57.7]} 5. Bxb4 {[%clk 0:02:50.8]}
5... cxb4 {[%clk 0:02:57.9]} 6. a3 {[%clk 0:02:49.2]} 6... bxa3 {[%clk
0:02:52.7]} 7. Rxa3 {[%clk 0:02:46.5]} 7... O-O {[%clk 0:02:44.3]} 8. Nc3 {[%clk
0:02:46]} 8... d5 {[%clk 0:02:43.3]} 9. e3 {[%clk 0:02:45.5]} 9... Nc6 {[%clk
0:02:40.3]} 10. Bd3 {[%clk 0:02:44.4]} 10... dxc4 {[%clk 0:02:39.5]} 11. Bxc4
{[%clk 0:02:45.1]} 11... a6 {[%clk 0:02:39.8]} 12. O-O {[%clk 0:02:43.9]} 12...
Bd7 {[%clk 0:02:39]} 13. Bd3 {[%clk 0:02:39]} 13... Nb4 {[%clk 0:02:37.2]} 14.
Bb1 {[%clk 0:02:37.6]} 14... Rc8 {[%clk 0:02:33.8]} 15. Ne5 {[%clk 0:02:37]}
15... Be8 {[%clk 0:02:31.7]} 16. Ne4 {[%clk 0:02:32]} 16... Bb5 {[%clk
0:02:17.7]} 17. Re1 {[%clk 0:02:24.6]} 17... Rc7 {[%clk 0:01:51.8]} 18. Qd2
{[%clk 0:02:18.2]} 18... Nxe4 {[%clk 0:01:42.5]} 19. Bxe4 {[%clk 0:02:16.2]}
19... Nd5 {[%clk 0:01:41.6]} 20. Bb1 {[%clk 0:02:05.8]} 20... Qg5 {[%clk
0:01:28.5]} 21. f4 {[%clk 0:01:53]} 21... Qe7 {[%clk 0:01:19.5]} 22. e4 {[%clk
0:01:48.9]} 22... Nf6 {[%clk 0:01:18.3]} 23. Rh3 {[%clk 0:01:46.2]} 23... Rd8
{[%clk 0:01:13.4]} 24. Nf3 {[%clk 0:01:40.1]} 24... h6 {[%clk 0:00:47.1]} 25. f5
{[%clk 0:01:29.2]} 25... exf5 {[%clk 0:00:42.8]} 26. e5 {[%clk 0:01:23.3]} 26...
Ne4 {[%clk 0:00:39.6]} 27. Qf4 {[%clk 0:01:04.1]} 27... Ng5 {[%clk 0:00:29.8]}
28. Rg3 {[%clk 0:01:02.1]} 28... Nxf3+ {[%clk 0:00:28.1]} 29. gxf3 {[%clk
0:00:47.6]} 29... Qd7 {[%clk 0:00:17.8]} 30. Rd1 {[%clk 0:00:28.7]} 30... Kh8
{[%clk 0:00:15.9]} 31. Bxf5 {[%clk 0:00:25]} 31... Qd5 {[%clk 0:00:15.3]} 32.
Be4 {[%clk 0:00:23.8]} 32... Qe6 {[%clk 0:00:14.2]} 33. d5 {[%clk 0:00:19.8]}
33... Qe8 {[%clk 0:00:12.8]} 34. Qf5 {[%clk 0:00:16.9]} 34... g6 {[%clk
0:00:11.4]} 35. Qf6+ {[%clk 0:00:16.8]} 35... Kh7 {[%clk 0:00:11.5]} 36. e6
{[%clk 0:00:16.4]} 36... Re7 {[%clk 0:00:10.1]} 37. exf7 {[%clk 0:00:15.7]}
37... Qxf7 {[%clk 0:00:05.1]} 38. Bxg6+ {[%clk 0:00:15.4]} 1-0

[Event "*** Titled Tuesday Blitz"]
[Site "Chess.com"]
[Date "2021.02.09"]
[Round "2"]
[White "Deepweb2020"]
[Black "esapunov"]
[Result "0-1"]
[WhiteElo "2480"]
[BlackElo "2730"]
[TimeControl "180+1"]
[EndTime "10:18:20 PST"]
[Termination "esapunov won by resignation"]

1. d4 {[%clk 0:03:00.9]} 1... Nf6 {[%clk 0:02:59.5]} 2. c4 {[%clk 0:03:00.7]}
2... g6 {[%clk 0:02:59.8]} 3. g3 {[%clk 0:03:01]} 3... Bg7 {[%clk 0:02:59.9]} 4.
Nf3 {[%clk 0:03:00.2]} 4... O-O {[%clk 0:03:00.8]} 5. Bg2 {[%clk 0:03:00.7]}
5... d6 {[%clk 0:03:01.2]} 6. O-O {[%clk 0:03:01]} 6... Nc6 {[%clk 0:03:01.6]}
7. Nc3 {[%clk 0:03:01.4]} 7... Bf5 {[%clk 0:03:01.5]} 8. b3 {[%clk 0:03:00.7]}
8... Ne4 {[%clk 0:03:01.1]} 9. Bb2 {[%clk 0:02:58.6]} 9... Nxc3 {[%clk
0:03:00.9]} 10. Bxc3 {[%clk 0:02:59.5]} 10... Be4 {[%clk 0:03:01.5]} 11. Qd2
{[%clk 0:02:52]} 11... d5 {[%clk 0:03:01.3]} 12. e3 {[%clk 0:02:47]} 12... e6
{[%clk 0:03:01]} 13. Rac1 {[%clk 0:02:35.8]} 13... Re8 {[%clk 0:03:00.4]} 14.
Rfd1 {[%clk 0:02:34.5]} 14... a5 {[%clk 0:02:56.2]} 15. a3 {[%clk 0:02:34]}
15... h5 {[%clk 0:02:53.5]} 16. h4 {[%clk 0:02:29.9]} 16... b6 {[%clk
0:02:46.5]} 17. Bb2 {[%clk 0:02:24.1]} 17... Ne7 {[%clk 0:02:44]} 18. Ng5 {[%clk
0:02:01.7]} 18... Bxg2 {[%clk 0:02:41.5]} 19. Kxg2 {[%clk 0:02:02.6]} 19... c6
{[%clk 0:02:34.1]} 20. a4 {[%clk 0:01:55.9]} 20... Qd7 {[%clk 0:02:32]} 21. c5
{[%clk 0:01:55.6]} 21... b5 {[%clk 0:02:24.6]} 22. axb5 {[%clk 0:01:55.2]} 22...
cxb5 {[%clk 0:02:24.6]} 23. Ra1 {[%clk 0:01:55.5]} 23... Nc6 {[%clk 0:02:24.2]}
24. Qe2 {[%clk 0:01:39.6]} 24... b4 {[%clk 0:02:22.5]} 25. f4 {[%clk 0:01:33.5]}
25... f6 {[%clk 0:02:12.3]} 26. Nf3 {[%clk 0:01:29.6]} 26... e5 {[%clk
0:02:06.2]} 27. Qc2 {[%clk 0:01:12.2]} 27... e4 {[%clk 0:02:02.4]} 28. Ng1
{[%clk 0:00:57.4]} 28... g5 {[%clk 0:01:59]} 29. Qe2 {[%clk 0:00:50.2]} 29...
gxf4 {[%clk 0:01:51.9]} 30. gxf4 {[%clk 0:00:46.4]} 30... Qf5 {[%clk 0:01:51.2]}
31. Kh2 {[%clk 0:00:35.7]} 31... Kf7 {[%clk 0:01:49]} 32. Nh3 {[%clk 0:00:35.4]}
32... Rg8 {[%clk 0:01:48.3]} 33. Rg1 {[%clk 0:00:35]} 33... Bh6 {[%clk
0:01:43.7]} 34. Qb5 {[%clk 0:00:24.7]} 34... Qd7 {[%clk 0:01:42.4]} 35. Qe2
{[%clk 0:00:21.6]} 35... Rg4 {[%clk 0:01:39.3]} 36. Nf2 {[%clk 0:00:20.6]} 36...
f5 {[%clk 0:01:26.8]} 37. Nxg4 {[%clk 0:00:20.2]} 37... fxg4 {[%clk 0:01:27]}
38. f5 {[%clk 0:00:16.3]} 38... Bg7 {[%clk 0:01:26.9]} 39. f6 {[%clk 0:00:15.5]}
39... Bxf6 {[%clk 0:01:24.3]} 40. Raf1 {[%clk 0:00:12.8]} 40... Kg6 {[%clk
0:01:23.8]} 41. Qf2 {[%clk 0:00:09.2]} 41... Rf8 {[%clk 0:01:20.7]} 42. Qg3
{[%clk 0:00:05.8]} 42... Qe7 {[%clk 0:01:15.7]} 43. Rf4 {[%clk 0:00:01.8]} 43...
Bxh4 {[%clk 0:01:09.2]} 44. Qg2 {[%clk 0:00:01.9]} 44... Rxf4 {[%clk 0:01:07.3]}
45. exf4 {[%clk 0:00:02.8]} 45... Bf6 {[%clk 0:01:07.1]} 46. f5+ {[%clk
0:00:02.2]} 46... Kf7 {[%clk 0:01:03.9]} 47. Qg3 {[%clk 0:00:02.6]} 47... Nxd4
{[%clk 0:01:00.5]} 48. Bxd4 {[%clk 0:00:02.1]} 48... Bxd4 {[%clk 0:01:00.5]} 49.
Rf1 {[%clk 0:00:03]} 49... Be5 {[%clk 0:01:00.6]} 50. Rf4 {[%clk 0:00:02.2]}
50... Qg5 {[%clk 0:00:57.2]} 0-1

[Event "*** Titled Tuesday Blitz"]
[Site "Chess.com"]
[Date "2021.02.09"]
[Round "2"]
[White "VladimirBugayev"]
[Black "SharapovEvgeny"]
[Result "1/2-1/2"]
[WhiteElo "2268"]
[BlackElo "2457"]
[TimeControl "180+1"]
[EndTime "10:18:20 PST"]
[Termination "Game drawn - insufficient material"]

1. e4 {[%clk 0:03:00.9]} 1... c5 {[%clk 0:02:59.2]} 2. Nc3 {[%clk 0:03:01.4]}
2... Nc6 {[%clk 0:02:58.4]} 3. Bb5 {[%clk 0:03:01.9]} 3... Nd4 {[%clk
0:02:56.6]} 4. Nf3 {[%clk 0:03:02.2]} 4... Nxb5 {[%clk 0:02:54.4]} 5. Nxb5
{[%clk 0:03:03.1]} 5... d6 {[%clk 0:02:53.9]} 6. d4 {[%clk 0:03:02.3]} 6... a6
{[%clk 0:02:52.9]} 7. Nc3 {[%clk 0:03:01.7]} 7... cxd4 {[%clk 0:02:52.9]} 8.
Qxd4 {[%clk 0:03:01.1]} 8... e5 {[%clk 0:02:52.4]} 9. Qb4 {[%clk 0:02:55.6]}
9... Nf6 {[%clk 0:02:40.5]} 10. Bg5 {[%clk 0:02:49.6]} 10... Be7 {[%clk
0:02:39.7]} 11. O-O-O {[%clk 0:02:45.8]} 11... O-O {[%clk 0:02:09.9]} 12. Bxf6
{[%clk 0:02:35.3]} 12... Bxf6 {[%clk 0:02:08.3]} 13. Qxd6 {[%clk 0:02:29.5]}
13... Qxd6 {[%clk 0:02:04.9]} 14. Rxd6 {[%clk 0:02:28.6]} 14... Be6 {[%clk
0:02:02.4]} 15. Rhd1 {[%clk 0:02:24.6]} 15... Be7 {[%clk 0:01:56.4]} 16. Rb6
{[%clk 0:02:09.5]} 16... Rab8 {[%clk 0:01:46.2]} 17. Nxe5 {[%clk 0:01:34.8]}
17... Bc5 {[%clk 0:01:45.3]} 18. Rxe6 {[%clk 0:01:30.5]} 18... fxe6 {[%clk
0:01:44.2]} 19. Nd7 {[%clk 0:01:30.5]} 19... Bxf2 {[%clk 0:01:40.5]} 20. Nxb8
{[%clk 0:01:22.7]} 20... Be3+ {[%clk 0:01:39.9]} 21. Kb1 {[%clk 0:01:21.7]}
21... Rxb8 {[%clk 0:01:38.9]} 22. Rd3 {[%clk 0:01:14.7]} 22... Bg1 {[%clk
0:01:35.1]} 23. h3 {[%clk 0:01:07.7]} 23... Rf8 {[%clk 0:01:34.1]} 24. Rf3
{[%clk 0:01:05.1]} 24... Rxf3 {[%clk 0:01:33.2]} 25. gxf3 {[%clk 0:01:04.8]}
25... Kf7 {[%clk 0:01:33.1]} 26. Ne2 {[%clk 0:01:03.3]} 26... Be3 {[%clk
0:01:31.7]} 27. c3 {[%clk 0:01:03.7]} 27... Kg6 {[%clk 0:01:31.1]} 28. Kc2
{[%clk 0:01:04.4]} 28... Kg5 {[%clk 0:01:29.7]} 29. Kd3 {[%clk 0:01:05.1]} 29...
Bf2 {[%clk 0:01:25.7]} 30. Nd4 {[%clk 0:01:00.6]} 30... e5 {[%clk 0:01:16.6]}
31. Nf5 {[%clk 0:01:00.1]} 31... g6 {[%clk 0:01:12.6]} 32. Nd6 {[%clk
0:00:48.1]} 32... Kh4 {[%clk 0:01:09.6]} 33. Ke2 {[%clk 0:00:43.8]} 33... Bb6
{[%clk 0:01:04.9]} 34. Nxb7 {[%clk 0:00:40.2]} 34... Kxh3 {[%clk 0:01:03.2]} 35.
c4 {[%clk 0:00:40.8]} 35... h5 {[%clk 0:00:59.4]} 36. c5 {[%clk 0:00:41.3]}
36... Bc7 {[%clk 0:00:59]} 37. Kf2 {[%clk 0:00:40]} 37... g5 {[%clk 0:00:57.1]}
38. Nd6 {[%clk 0:00:38.3]} 38... g4 {[%clk 0:00:49.7]} 39. fxg4 {[%clk
0:00:38.3]} 39... Kxg4 {[%clk 0:00:43.6]} 40. Ne8 {[%clk 0:00:30]} 40... Bd8
{[%clk 0:00:37.6]} 41. c6 {[%clk 0:00:28.3]} 41... Kf4 {[%clk 0:00:35.7]} 42. c7
{[%clk 0:00:28.4]} 42... Bxc7 {[%clk 0:00:35.5]} 43. Nxc7 {[%clk 0:00:28.9]}
43... a5 {[%clk 0:00:34.9]} 44. Nd5+ {[%clk 0:00:27.7]} 44... Kxe4 {[%clk
0:00:34.3]} 45. Nf6+ {[%clk 0:00:27.8]} 45... Kd3 {[%clk 0:00:33]} 46. Nxh5
{[%clk 0:00:23.3]} 46... Kc2 {[%clk 0:00:32.6]} 47. Ke3 {[%clk 0:00:20.6]} 47...
Kxb2 {[%clk 0:00:32.3]} 48. Ke4 {[%clk 0:00:21.2]} 48... Kxa2 {[%clk 0:00:32.2]}
49. Kxe5 {[%clk 0:00:21.9]} 49... a4 {[%clk 0:00:32.6]} 50. Nf4 {[%clk
0:00:21.8]} 50... a3 {[%clk 0:00:32.6]} 51. Nd3 {[%clk 0:00:21.3]} 51... Kb3
{[%clk 0:00:32.3]} 52. Kd4 {[%clk 0:00:19.8]} 52... a2 {[%clk 0:00:31.4]} 53.
Nc1+ {[%clk 0:00:19.9]} 53... Kb2 {[%clk 0:00:31.8]} 54. Nxa2 {[%clk 0:00:20.7]}
1/2-1/2